[Event "Cracovia Chess Festival A 2021"]
[Site "Cracow"]
[Date "2022.01.04"]
[Round "9.9"]
[White "Turski, Bartlomiej"]
[Black "Cukrowski, Filip"]
[Result "0-1"]
[ECO "C10"]
[WhiteElo "2114"]
[BlackElo "2367"]
[Annotator "ChessBase"]
[PlyCount "86"]
[EventDate "2021.12.27"]
[EventCountry "POL"]
[SourceTitle "playchess.com"]
[Source "ChessBase"]
[SourceQuality "1"]
[TimeControl "40/5400+30:1800+30"]

1. e4 {[%emt 0:00:03]} e6 {[%emt 0:14:29]} 2. d4 {[%emt 0:00:06]} d5 {[%emt 0:00:05]} 3. Nd2 {[%emt 0:00:04]} dxe4 {[%emt 0:00:05]} 4. Nxe4 {[%emt 0:00:05]} Nd7 {[%emt 0:00:07]} 5. Nf3 {[%emt 0:00:11]} Ngf6 {[%emt 0:00:05]} 6. Bd3 {[%emt 0:00:08]} Nxe4 {[%emt 0:01:18]} 7. Bxe4 {[%emt 0:00:01]} Nf6 {[%emt 0:00:09]} 8. Bg5 {[%emt 0:00:29]} Be7 {[%emt 0:17:46]} 9. Bd3 {[%emt 0:00:05]} O-O {[%emt 0:18:56]} 10. Qe2 {[%emt 0:11:02]} h6 {[%emt 0:05:28]} 11. h4 {[%emt 0:02:31]} Re8 {[%emt 0:08:41]} 12. Bxf6 {[%emt 0:01:26]} Bxf6 {[%emt 0:00:06]} 13. O-O-O {[%emt 0:00:11]} Bd7 {[%emt 0:11:12]} 14. Kb1 {[%emt 0:02:39]} Bc6 {[%emt 0:01:03]} 15. Ne5 {[%emt 0:04:16]} Kf8 {[%emt 0:03:29]} 16. Nxc6 {[%emt 0:03:09]} bxc6 {[%emt 0:00:01]} 17. Be4 {[%emt 0:00:08]} Qd6 {[%emt 0:01:11]} 18. Qf3 {[%emt 0:06:12]} Rab8 {[%emt 0:00:12]} 19. Bxc6 {[%emt 0:07:08]} Red8 {[%emt 0:10:21]} 20. Rd3 {[%emt 0:17:02]} Rb6 {[%emt 0:00:37]} 21. Ba4 {[%emt 0:00:48]} a5 {[%emt 0:02:20]} 22. Bb3 {[%emt 0:05:36]} Rdb8 {[%emt 0:00:01]} 23. a4 {[%emt 0:00:27]} Rb4 {[%emt 0:00:01]} 24. Rhd1 {[%emt 0:04:30]} Bxd4 {[%emt 0:00:44]} 25. R1d2 {[%emt 0:03:57]} c5 {[%emt 0:01:30]} 26. c3 {[%emt 0:00:44]} Rxb3 {[%emt 0:00:09]} 27. cxd4 {[%emt 0:00:04]} c4 {[%emt 0:00:15]} 28. Rxb3 {[%emt 0:01:35]} cxb3 {[%emt 0:00:11]} 29. Qc3 {[%emt 0:00:07]} Qh2 {[%emt 0:01:07]} 30. Rd1 {[%emt 0:01:49]} Qxg2 {[%emt 0:00:23]} 31. Qc7 {[%emt 0:01:34]} Qe4+ {[%emt 0:00:25]} 32. Ka1 {[%emt 0:00:05]} Qa8 {[%emt 0:01:19]} 33. Qd6+ {[%emt 0:01:39]} Kg8 {[%emt 0:00:06]} 34. Rg1 {[%emt 0:00:02]} Rb4 {[%emt 0:00:56]} 35. Qe5 {[%emt 0:00:43]} Rxa4+ {[%emt 0:00:08]} 36. Kb1 {[%emt 0:00:03]} Qf8 {[%emt 0:00:43]} 37. Rc1 {[%emt 0:00:54]} Qd8 {[%emt 0:01:33]} 38. Rd1 {[%emt 0:03:33]} Qd5 {[%emt 0:00:12]} 39. Qf4 {[%emt 0:00:34]} Qc4 {[%emt 0:01:37]} 40. Qe4 {[%emt 0:00:00]} Qd5 {[%emt 0:00:00]} 41. Qf4 {[%emt 0:00:33]} Kh7 {[%emt 0:02:16]} 42. f3 {[%emt 0:00:25]} Qc4 {[%emt 0:04:30]} 43. Qe4+ {[%emt 0:01:07]} f5 {[%emt 0:00:06]} 0-1

[Event "Cracovia Chess Festival A 2021"]
[Site "Cracow"]
[Date "2022.01.04"]
[Round "9.12"]
[White "Seemann, Jakub"]
[Black "Vardanyan, Aras"]
[Result "0-1"]
[ECO "A43"]
[WhiteElo "2312"]
[BlackElo "2222"]
[Annotator "ChessBase"]
[PlyCount "118"]
[EventDate "2021.12.27"]
[EventCountry "POL"]
[SourceTitle "playchess.com"]
[Source "ChessBase"]
[SourceQuality "1"]
[TimeControl "40/5400+30:1800+30"]

1. d4 {[%emt 0:00:03]} Nf6 {[%emt 0:04:59]} 2. Nf3 {[%emt 0:00:04]} c5 {[%emt 0:01:33]} 3. d5 {[%emt 0:00:05]} g6 {[%emt 0:00:40]} 4. Nc3 {[%emt 0:00:13]} Bg7 {[%emt 0:00:04]} 5. e4 {[%emt 0:00:05]} d6 {[%emt 0:00:04]} 6. a4 {[%emt 0:00:25]} O-O {[%emt 0:00:08]} 7. Bc4 {[%emt 0:00:10]} Bg4 {[%emt 0:01:26]} 8. h3 {[%emt 0:00:43]} Bxf3 {[%emt 0:00:15]} 9. Qxf3 {[%emt 0:00:04]} Nbd7 {[%emt 0:00:04]} 10. Qd1 {[%emt 0:00:49]} b6 {[%emt 0:02:51]} 11. O-O {[%emt 0:00:50]} a6 {[%emt 0:01:04]} 12. Qe2 {[%emt 0:01:17]} Qc8 {[%emt 0:03:11]} 13. f4 {[%emt 0:00:25]} Ne8 {[%emt 0:01:27]} 14. Bd2 {[%emt 0:05:18]} Nc7 {[%emt 0:03:40]} 15. Ra3 {[%emt 0:00:43]} Qb7 {[%emt 0:02:15]} 16. Rb3 Rfb8 {[%emt 0:00:30]} 17. Rb1 Qc8 {[%emt 0:00:30]} 18. Kh2 Qe8 {[%emt 0:00:30]} 19. Be1 Kh8 {[%emt 0:00:30]} 20. Bg3 Nf6 {[%emt 0:00:30]} 21. Be1 e6 {[%emt 0:00:30]} 22. Qd3 exd5 {[%emt 0:00:30]} 23. exd5 Qd7 {[%emt 0:00:30]} 24. Bd2 Ra7 {[%emt 0:00:30]} 25. Re1 h5 {[%emt 0:00:30]} 26. g3 Ng8 {[%emt 0:00:30]} 27. Qe2 Nh6 {[%emt 0:00:30]} 28. Qe7 Qxe7 {[%emt 0:00:30]} 29. Rxe7 Nf5 {[%emt 0:00:30]} 30. Rxf7 Nd4 {[%emt 0:00:30]} 31. Kg2 Nxb3 {[%emt 0:00:30]} 32. cxb3 b5 {[%emt 0:00:30]} 33. axb5 Nxb5 {[%emt 0:00:30]} 34. Nxb5 axb5 {[%emt 0:00:30]} 35. Rxa7 bxc4 {[%emt 0:00:30]} 36. Bc1 Rxb3 {[%emt 0:00:30]} 37. Ra4 Bxb2 {[%emt 0:00:30]} 38. Rxc4 Bxc1 {[%emt 0:00:30]} 39. Rxc1 Rd3 {[%emt 0:00:30]} 40. g4 hxg4 {[%emt 0:00:30]} 41. hxg4 Kg7 {[%emt 0:30:30]} 42. Ra1 Kf6 {[%emt 0:00:30]} 43. Ra6 Rxd5 {[%emt 0:00:30]} 44. Kf3 Rd4 {[%emt 0:00:30]} 45. Ra8 g5 {[%emt 0:00:30]} 46. fxg5+ Kxg5 {[%emt 0:00:30]} 47. Rg8+ Kf6 {[%emt 0:00:30]} 48. g5+ Kf7 {[%emt 0:00:30]} 49. Rd8 Ke6 {[%emt 0:00:30]} 50. Ke3 Kf5 {[%emt 0:00:30]} 51. Rg8 Rg4 {[%emt 0:00:30]} 52. Rd8 Rg3+ {[%emt 0:00:30]} 53. Kf2 Rd3 {[%emt 0:00:30]} 54. Rg8 c4 {[%emt 0:00:30]} 55. g6 d5 {[%emt 0:00:30]} 56. Ke2 Kf6 {[%emt 0:00:30]} 57. Rf8+ Kxg6 {[%emt 0:00:30]} 58. Rf4 Kg5 {[%emt 0:00:30]} 59. Rf8 d4 {[%emt 0:00:30]} 0-1

[Event "Cracovia Chess Festival A 2021"]
[Site "Cracow"]
[Date "2022.01.04"]
[Round "9.14"]
[White "Paszewski, Mateusz"]
[Black "Ulasevich, Sergei"]
[Result "1-0"]
[ECO "A52"]
[WhiteElo "2300"]
[BlackElo "2171"]
[Annotator "ChessBase"]
[PlyCount "105"]
[EventDate "2021.12.27"]
[EventCountry "POL"]
[SourceTitle "playchess.com"]
[Source "ChessBase"]
[SourceQuality "1"]
[TimeControl "40/5400+30:1800+30"]

1. d4 {[%emt 0:03:35]} Nf6 {[%emt 0:00:11]} 2. c4 {[%emt 0:00:04]} e5 {[%emt 0:01:22]} 3. dxe5 {[%emt 0:00:14]} Ng4 {[%emt 0:00:06]} 4. Bf4 {[%emt 0:00:13]} Nc6 {[%emt 0:00:11]} 5. Nf3 {[%emt 0:00:33]} Bb4+ {[%emt 0:00:07]} 6. Nc3 {[%emt 0:00:23]} Qe7 {[%emt 0:00:18]} 7. Qd5 {[%emt 0:01:19]} Bxc3+ {[%emt 0:00:16]} 8. bxc3 {[%emt 0:00:01]} f6 {[%emt 0:00:07]} 9. exf6 {[%emt 0:00:24]} Nxf6 {[%emt 0:00:07]} 10. Qd3 {[%emt 0:07:30]} d6 {[%emt 0:00:11]} 11. g3 {[%emt 0:07:03]} O-O {[%emt 0:00:12]} 12. Bg2 {[%emt 0:03:23]} Re8 {[%emt 0:00:10]} 13. O-O {[%emt 0:16:52]} Qxe2 {[%emt 0:00:36]} 14. Qxe2 {[%emt 0:02:09]} Rxe2 {[%emt 0:00:02]} 15. Nd4 {[%emt 0:00:06]} Nxd4 {[%emt 0:02:35]} 16. cxd4 {[%emt 0:00:09]} Be6 {[%emt 0:01:34]} 17. Bxb7 {[%emt 0:21:12]} Rb8 {[%emt 0:02:43]} 18. Rfb1 {[%emt 0:11:20]} Rc2 {[%emt 0:48:02]} 19. c5 {[%emt 0:03:08]} dxc5 {[%emt 0:05:36]} 20. Bxc7 {[%emt 0:00:22]} Rxb7 {[%emt 0:00:06]} 21. Rxb7 {[%emt 0:00:05]} cxd4 {[%emt 0:00:03]} 22. Be5 {[%emt 0:06:49]} d3 {[%emt 0:01:32]} 23. Bxf6 {[%emt 0:00:04]} gxf6 {[%emt 0:00:06]} 24. Rd1 {[%emt 0:00:16]} Bd5 {[%emt 0:04:22]} 25. Rd7 {[%emt 0:00:36]} Bf3 {[%emt 0:01:36]} 26. Rb1 {[%emt 0:04:00]} Rc8 {[%emt 0:01:23]} 27. h3 {[%emt 0:05:29]} Be4 {[%emt 0:10:25]} 28. Re1 {[%emt 0:00:21]} Bf5 {[%emt 0:02:56]} 29. Rd5 {[%emt 0:00:18]} Bg6 {[%emt 0:02:07]} 30. g4 {[%emt 0:00:52]} Kg7 {[%emt 0:04:49]} 31. Re7+ {[%emt 0:01:27]} Kh6 {[%emt 0:00:03]} 32. h4 {[%emt 0:00:31]} Rc2 {[%emt 0:07:47]} 33. h5 {[%emt 0:00:54]} Re2 {[%emt 0:00:02]} 34. Re3 {[%emt 0:04:43]} Be4 {[%emt 0:01:42]} 35. Rd4 {[%emt 0:00:31]} f5 {[%emt 0:01:09]} 36. gxf5 {[%emt 0:00:16]} Bxf5 {[%emt 0:00:16]} 37. a4 {[%emt 0:01:02]} Kxh5 {[%emt 0:01:35]} 38. Kg2 {[%emt 0:00:23]} Kg5 {[%emt 0:01:38]} 39. Kf3 {[%emt 0:00:47]} Ra2 {[%emt 0:00:56]} 40. Re5 {[%emt 0:00:00]} Kf6 {[%emt 0:00:00]} 41. Ra5 {[%emt 0:05:57]} Ke6 {[%emt 0:09:33]} 42. Kg3 {[%emt 0:06:20]} Bg6 {[%emt 0:07:27]} 43. f4 {[%emt 0:04:33]} Ra1 {[%emt 0:03:45]} 44. Re5+ {[%emt 0:02:29]} Kf7 {[%emt 0:00:40]} 45. Rd7+ {[%emt 0:00:53]} Kf6 {[%emt 0:00:05]} 46. Rd6+ {[%emt 0:00:07]} Kf7 {[%emt 0:01:15]} 47. f5 {[%emt 0:02:54]} Bh5 {[%emt 0:00:06]} 48. Ra5 {[%emt 0:01:18]} Ra3 {[%emt 0:00:51]} 49. Rxa7+ {[%emt 0:00:32]} Ke8 {[%emt 0:00:51]} 50. Kh4 {[%emt 0:01:04]} Bf7 {[%emt 0:00:19]} 51. f6 {[%emt 0:00:16]} Kf8 {[%emt 0:00:33]} 52. Rd8+ {[%emt 0:00:08]} Be8 {[%emt 0:00:01]} 53. f7 {[%emt 0:00:19]} 1-0

[Event "Cracovia Chess Festival A 2021"]
[Site "Cracow"]
[Date "2022.01.04"]
[Round "9.16"]
[White "Malek, Jan"]
[Black "Gahan M G"]
[Result "1-0"]
[ECO "A15"]
[WhiteElo "2149"]
[BlackElo "2248"]
[Annotator "ChessBase"]
[PlyCount "113"]
[EventDate "2021.12.27"]
[EventCountry "POL"]
[SourceTitle "playchess.com"]
[Source "ChessBase"]
[SourceQuality "1"]
[TimeControl "40/5400+30:1800+30"]

1. c4 {[%emt 0:00:05]} Nf6 {[%emt 0:01:48]} 2. Nf3 {[%emt 0:00:09]} g6 {[%emt 0:00:13]} 3. Nc3 {[%emt 0:00:07]} c6 {[%emt 0:00:09]} 4. d4 {[%emt 0:00:16]} d5 {[%emt 0:00:06]} 5. cxd5 {[%emt 0:00:42]} cxd5 {[%emt 0:00:02]} 6. Bf4 {[%emt 0:00:08]} Bg7 {[%emt 0:00:37]} 7. e3 {[%emt 0:00:09]} O-O {[%emt 0:00:43]} 8. Bd3 {[%emt 0:09:56]} Qb6 {[%emt 0:01:42]} 9. a3 {[%emt 0:04:32]} Bd7 {[%emt 0:03:50]} 10. b4 {[%emt 0:03:32]} a5 {[%emt 0:02:23]} 11. b5 {[%emt 0:07:16]} a4 {[%emt 0:03:33]} 12. O-O {[%emt 0:03:46]} Qa5 {[%emt 0:01:06]} 13. Qd2 {[%emt 0:11:53]} Rc8 {[%emt 0:01:16]} 14. Rfc1 {[%emt 0:00:11]} Bf8 {[%emt 0:02:41]} 15. Na2 {[%emt 0:09:34]} Rxc1+ {[%emt 0:08:07]} 16. Rxc1 {[%emt 0:02:20]} Qxd2 {[%emt 0:00:13]} 17. Nxd2 {[%emt 0:00:01]} e6 {[%emt 0:00:50]} 18. Rc7 {[%emt 0:04:40]} Nh5 {[%emt 0:00:48]} 19. Rxb7 {[%emt 0:08:57]} Nxf4 {[%emt 0:00:17]} 20. exf4 {[%emt 0:00:13]} Bxa3 {[%emt 0:01:51]} 21. b6 {[%emt 0:00:33]} Bd6 {[%emt 0:00:24]} 22. Ra7 {[%emt 0:00:14]} Bc6 {[%emt 0:00:12]} 23. Bb5 {[%emt 0:00:58]} Bxb5 {[%emt 0:00:09]} 24. Rxa8 {[%emt 0:00:07]} Bc6 {[%emt 0:01:18]} 25. Ra7 {[%emt 0:04:18]} Nd7 {[%emt 0:00:24]} 26. Nf3 {[%emt 0:06:44]} f6 {[%emt 0:04:07]} 27. b7 {[%emt 0:00:24]} Nb8 {[%emt 0:04:57]} 28. Nc3 {[%emt 0:00:49]} a3 {[%emt 0:00:38]} 29. Nb1 {[%emt 0:01:32]} Bxf4 {[%emt 0:03:30]} 30. Nxa3 {[%emt 0:00:30]} Kf7 {[%emt 0:01:57]} 31. Nc2 {[%emt 0:08:54]} Bd6 {[%emt 0:00:49]} 32. Ra1 {[%emt 0:00:30]} Ke7 {[%emt 0:01:37]} 33. Rb1 {[%emt 0:00:07]} Kd7 {[%emt 0:00:51]} 34. Nb4 {[%emt 0:00:06]} Bxb7 {[%emt 0:01:36]} 35. Nd3 {[%emt 0:00:02]} Bc6 {[%emt 0:00:33]} 36. Nc5+ {[%emt 0:00:08]} Ke7 {[%emt 0:00:34]} 37. Rc1 {[%emt 0:04:07]} Be8 {[%emt 0:03:17]} 38. Nb7 {[%emt 0:00:26]} Bf4 {[%emt 0:00:27]} 39. Re1 {[%emt 0:01:36]} Nc6 {[%emt 0:01:30]} 40. Nc5 {[%emt 0:00:00]} Bf7 {[%emt 0:00:00]} 41. Rb1 {[%emt 0:01:02]} Nd8 {[%emt 0:01:28]} 42. h4 {[%emt 0:06:39]} h6 {[%emt 0:02:54]} 43. g3 {[%emt 0:01:08]} Bc7 {[%emt 0:00:26]} 44. Ra1 {[%emt 0:01:55]} g5 {[%emt 0:00:35]} 45. Ra7 {[%emt 0:00:22]} Kd6 {[%emt 0:00:05]} 46. Ra6+ {[%emt 0:02:12]} Ke7 {[%emt 0:00:07]} 47. hxg5 {[%emt 0:02:40]} hxg5 {[%emt 0:00:05]} 48. Nh2 {[%emt 0:03:51]} Be8 {[%emt 0:05:47]} 49. Ra7 {[%emt 0:00:10]} Kd6 {[%emt 0:00:07]} 50. Ng4 {[%emt 0:00:08]} Nc6 {[%emt 0:00:45]} 51. Nxf6 {[%emt 0:00:15]} Nxa7 {[%emt 0:06:38]} 52. Nxe8+ {[%emt 0:01:24]} Kc6 {[%emt 0:00:03]} 53. Nxc7 {[%emt 0:00:19]} Kxc7 {[%emt 0:02:21]} 54. Nxe6+ {[%emt 0:00:07]} Kd6 {[%emt 0:00:03]} 55. Nxg5 {[%emt 0:00:01]} Nc6 {[%emt 0:00:19]} 56. Nf3 {[%emt 0:00:05]} Ke6 {[%emt 0:00:11]} 57. g4 {[%emt 0:00:18]} 1-0

[Event "Cracovia Chess Festival A 2021"]
[Site "Cracow"]
[Date "2022.01.04"]
[Round "9.17"]
[White "Dev, Shah"]
[Black "Barath Kalyan M"]
[Result "1/2-1/2"]
[ECO "E16"]
[WhiteElo "2243"]
[BlackElo "2103"]
[Annotator "ChessBase"]
[PlyCount "45"]
[EventDate "2021.12.27"]
[EventCountry "POL"]
[SourceTitle "playchess.com"]
[Source "ChessBase"]
[SourceQuality "1"]
[TimeControl "40/5400+30:1800+30"]

1. d4 {[%emt 0:00:49]} Nf6 {[%emt 0:01:26]} 2. c4 {[%emt 0:00:14]} e6 {[%emt 0:00:07]} 3. Nf3 {[%emt 0:00:20]} Bb4+ {[%emt 0:00:08]} 4. Bd2 {[%emt 0:00:05]} Qe7 {[%emt 0:00:06]} 5. g3 {[%emt 0:00:23]} Nc6 {[%emt 0:00:17]} 6. Bg2 {[%emt 0:00:33]} Bxd2+ {[%emt 0:00:10]} 7. Nbxd2 {[%emt 0:00:05]} d6 {[%emt 0:00:08]} 8. O-O {[%emt 0:00:27]} a5 {[%emt 0:00:12]} 9. e4 {[%emt 0:02:34]} e5 {[%emt 0:00:27]} 10. d5 {[%emt 0:00:06]} Nb8 {[%emt 0:01:11]} 11. Ne1 {[%emt 0:00:29]} O-O {[%emt 0:00:41]} 12. Nd3 {[%emt 0:00:30]} Nbd7 {[%emt 0:01:00]} 13. f4 {[%emt 0:08:31]} b6 {[%emt 0:01:02]} 14. Qc2 {[%emt 0:04:29]} Nc5 {[%emt 0:02:56]} 15. Rae1 {[%emt 0:00:37]} Nfd7 {[%emt 0:01:13]} 16. f5 {[%emt 0:01:39]} Nxd3 {[%emt 0:00:18]} 17. Qxd3 {[%emt 0:00:07]} Nc5 {[%emt 0:00:05]} 18. Qe3 {[%emt 0:03:15]} f6 {[%emt 0:02:00]} 19. b3 {[%emt 0:01:38]} Bd7 {[%emt 0:00:52]} 20. a4 {[%emt 0:00:44]} g5 {[%emt 0:06:54]} 21. g4 {[%emt 0:08:37]} Qg7 {[%emt 0:02:24]} 22. Bf3 {[%emt 0:03:54]} Kf7 {[%emt 0:00:10]} 23. Rf2 {[%emt 0:00:42]} 1/2-1/2

[Event "Cracovia Chess Festival A 2021"]
[Site "Cracow"]
[Date "2022.01.04"]
[Round "9.19"]
[White "Meurs, Tom"]
[Black "Kopylov, Michael"]
[Result "1/2-1/2"]
[ECO "B40"]
[WhiteElo "2208"]
[BlackElo "2391"]
[Annotator "ChessBase"]
[PlyCount "64"]
[EventDate "2021.12.27"]
[EventCountry "POL"]
[SourceTitle "playchess.com"]
[Source "ChessBase"]
[SourceQuality "1"]
[TimeControl "40/5400+30:1800+30"]

1. e4 {[%emt 0:00:10]} c5 {[%emt 0:00:46]} 2. Nf3 {[%emt 0:00:11]} e6 {[%emt 0:00:25]} 3. d4 {[%emt 0:00:10]} cxd4 {[%emt 0:00:09]} 4. Nxd4 {[%emt 0:00:05]} Qb6 {[%emt 0:01:38]} 5. Nb3 {[%emt 0:00:19]} Qc7 {[%emt 0:00:17]} 6. Nc3 {[%emt 0:00:42]} a6 {[%emt 0:00:22]} 7. Qf3 {[%emt 0:03:22]} Nf6 {[%emt 0:01:16]} 8. g4 {[%emt 0:05:22]} d6 {[%emt 0:05:48]} 9. g5 {[%emt 0:04:58]} Nfd7 {[%emt 0:00:57]} 10. Be3 {[%emt 0:00:34]} b5 {[%emt 0:01:00]} 11. a3 {[%emt 0:00:43]} Bb7 {[%emt 0:01:49]} 12. O-O-O {[%emt 0:00:28]} Nc6 {[%emt 0:01:48]} 13. Qh3 {[%emt 0:03:39]} b4 {[%emt 0:07:22]} 14. axb4 {[%emt 0:00:41]} Nxb4 {[%emt 0:00:12]} 15. g6 {[%emt 0:04:00]} hxg6 {[%emt 0:18:54]} 16. Qxh8 {[%emt 0:01:04]} Bxe4 {[%emt 0:00:05]} 17. Rg1 {[%emt 0:14:04]} Bxc2 {[%emt 0:20:38]} 18. Rd4 {[%emt 0:06:13]} Rb8 {[%emt 0:00:46]} 19. Rxb4 {[%emt 0:16:30]} Rxb4 {[%emt 0:00:10]} 20. Kxc2 {[%emt 0:00:10]} Qb8 {[%emt 0:01:19]} 21. Nd2 {[%emt 0:06:27]} Rxb2+ {[%emt 0:00:16]} 22. Kc1 {[%emt 0:00:05]} Qb4 {[%emt 0:01:52]} 23. Ncb1 {[%emt 0:07:56]} Ra2 {[%emt 0:10:23]} 24. Bc4 {[%emt 0:03:53]} Qb2+ {[%emt 0:00:31]} 25. Kd1 {[%emt 0:00:03]} Qc2+ {[%emt 0:00:07]} 26. Ke2 {[%emt 0:03:11]} Qxc4+ {[%emt 0:00:06]} 27. Kf3 {[%emt 0:01:15]} Ne5+ {[%emt 0:02:16]} 28. Kg2 {[%emt 0:00:05]} Qd5+ {[%emt 0:01:17]} 29. Kh3 {[%emt 0:00:17]} Nf3 {[%emt 0:03:18]} 30. Rc1 {[%emt 0:01:52]} Nxd2 {[%emt 0:06:54]} 31. Rc8+ {[%emt 0:10:14]} Kd7 {[%emt 0:00:18]} 32. Rd8+ {[%emt 0:00:16]} Kxd8 {[%emt 0:10:26]} 1/2-1/2

[Event "Cracovia Chess Festival A 2021"]
[Site "Cracow"]
[Date "2022.01.04"]
[Round "9.21"]
[White "Sharma Isha"]
[Black "Suder, Jakub"]
[Result "0-1"]
[ECO "B32"]
[WhiteElo "2200"]
[BlackElo "2349"]
[Annotator "ChessBase"]
[PlyCount "66"]
[EventDate "2021.12.27"]
[EventCountry "POL"]
[SourceTitle "playchess.com"]
[Source "ChessBase"]
[SourceQuality "1"]
[TimeControl "40/5400+30:1800+30"]

1. e4 {[%emt 0:04:59]} c5 {[%emt 0:00:06]} 2. Nf3 {[%emt 0:00:15]} Nc6 {[%emt 0:00:08]} 3. d4 {[%emt 0:00:08]} cxd4 {[%emt 0:00:05]} 4. Nxd4 {[%emt 0:00:02]} e5 {[%emt 0:00:12]} 5. Nb5 {[%emt 0:00:05]} d6 {[%emt 0:00:05]} 6. N1c3 {[%emt 0:00:41]} a6 {[%emt 0:00:07]} 7. Na3 {[%emt 0:00:04]} b5 {[%emt 0:00:06]} 8. Nd5 {[%emt 0:00:04]} Nge7 {[%emt 0:00:11]} 9. c4 {[%emt 0:00:07]} Nd4 {[%emt 0:00:33]} 10. Be3 {[%emt 0:11:09]} Nxd5 {[%emt 0:00:24]} 11. cxd5 {[%emt 0:03:30]} f5 {[%emt 0:02:52]} 12. Bxd4 {[%emt 0:03:19]} exd4 {[%emt 0:00:16]} 13. Bd3 {[%emt 0:00:20]} Be7 {[%emt 0:14:26]} 14. O-O {[%emt 0:02:44]} O-O {[%emt 0:01:46]} 15. Nc2 {[%emt 0:00:29]} f4 {[%emt 0:04:44]} 16. Nxd4 {[%emt 0:05:52]} Bf6 {[%emt 0:01:13]} 17. Nc6 {[%emt 0:00:05]} Qe8 {[%emt 0:01:47]} 18. Rb1 {[%emt 0:02:02]} Bd7 {[%emt 0:03:44]} 19. Nb4 {[%emt 0:01:03]} f3 {[%emt 0:05:38]} 20. g3 {[%emt 0:04:21]} Qh5 {[%emt 0:05:29]} 21. Re1 {[%emt 0:02:32]} Be5 {[%emt 0:01:29]} 22. Nc6 {[%emt 0:07:30]} Rae8 {[%emt 0:06:33]} 23. Re3 {[%emt 0:08:21]} Rf6 {[%emt 0:03:47]} 24. b4 {[%emt 0:03:06]} Bxg3 {[%emt 0:07:14]} 25. fxg3 {[%emt 0:09:31]} Bg4 {[%emt 0:03:03]} 26. Rxf3 {[%emt 0:01:17]} Bxf3 {[%emt 0:00:45]} 27. Qc2 {[%emt 0:01:31]} Qg4 {[%emt 0:03:21]} 28. Re1 {[%emt 0:01:51]} h5 {[%emt 0:01:17]} 29. e5 {[%emt 0:05:20]} dxe5 {[%emt 0:01:49]} 30. Qc5 {[%emt 0:01:57]} e4 {[%emt 0:13:31]} 31. d6 {[%emt 0:06:17]} Qd7 {[%emt 0:06:19]} 32. Ne7+ {[%emt 0:01:58]} Kf8 {[%emt 0:04:48]} 33. Nd5 {[%emt 0:00:36]} Rxd6 {[%emt 0:02:32]} 0-1

[Event "Cracovia Chess Festival A 2021"]
[Site "Cracow"]
[Date "2022.01.04"]
[Round "9.22"]
[White "Karsay, Pascal"]
[Black "Dzida, Kamil"]
[Result "1-0"]
[ECO "A46"]
[WhiteElo "2322"]
[BlackElo "2238"]
[Annotator "ChessBase"]
[PlyCount "125"]
[EventDate "2021.12.27"]
[EventCountry "POL"]
[SourceTitle "playchess.com"]
[Source "ChessBase"]
[SourceQuality "1"]
[TimeControl "40/5400+30:1800+30"]

1. d4 {[%emt 0:00:05]} Nf6 {[%emt 0:00:08]} 2. Nf3 {[%emt 0:00:15]} e6 {[%emt 0:00:18]} 3. e3 {[%emt 0:00:25]} b6 {[%emt 0:00:14]} 4. Bd3 {[%emt 0:00:12]} Bb7 {[%emt 0:00:39]} 5. O-O {[%emt 0:00:12]} d5 {[%emt 0:01:31]} 6. b3 {[%emt 0:00:54]} Nbd7 {[%emt 0:00:25]} 7. c4 {[%emt 0:00:19]} Bd6 {[%emt 0:01:45]} 8. cxd5 {[%emt 0:01:33]} exd5 {[%emt 0:00:06]} 9. Ba3 {[%emt 0:00:22]} Bxa3 {[%emt 0:01:08]} 10. Nxa3 {[%emt 0:00:03]} c6 {[%emt 0:00:49]} 11. b4 {[%emt 0:08:05]} Qe7 {[%emt 0:01:31]} 12. Qb3 {[%emt 0:02:40]} a5 {[%emt 0:07:38]} 13. bxa5 {[%emt 0:00:28]} Rxa5 {[%emt 0:00:13]} 14. Nb1 {[%emt 0:00:15]} O-O {[%emt 0:00:16]} 15. Nc3 {[%emt 0:05:51]} Ra3 {[%emt 0:08:22]} 16. Qb2 {[%emt 0:02:15]} Rfa8 {[%emt 0:03:06]} 17. Rfc1 {[%emt 0:02:25]} Ne8 {[%emt 0:07:01]} 18. Bf5 {[%emt 0:13:37]} Nd6 {[%emt 0:00:26]} 19. Bxd7 {[%emt 0:00:10]} Nc4 {[%emt 0:00:06]} 20. Qc2 {[%emt 0:00:38]} Qxd7 {[%emt 0:00:17]} 21. Nd2 {[%emt 0:05:30]} b5 {[%emt 0:06:38]} 22. Nxc4 {[%emt 0:08:53]} dxc4 {[%emt 0:00:15]} 23. Ne4 {[%emt 0:03:27]} Bc8 {[%emt 0:02:08]} 24. Nc5 {[%emt 0:02:44]} Qg4 {[%emt 0:04:36]} 25. Qb2 {[%emt 0:04:24]} Qg6 {[%emt 0:05:42]} 26. Kf1 {[%emt 0:20:17]} Be6 {[%emt 0:03:45]} 27. e4 {[%emt 0:06:39]} Qh5 {[%emt 0:04:26]} 28. Kg1 {[%emt 0:02:23]} c3 {[%emt 0:01:53]} 29. Rxc3 {[%emt 0:01:09]} Rxa2 {[%emt 0:01:01]} 30. Rcc1 {[%emt 0:00:01]} Bc4 {[%emt 0:01:29]} 31. Qc3 {[%emt 0:04:41]} Qe2 {[%emt 0:03:03]} 32. Rxa2 {[%emt 0:00:07]} Rxa2 {[%emt 0:00:11]} 33. Qg3 {[%emt 0:00:03]} Ra8 {[%emt 0:02:46]} 34. Nd7 {[%emt 0:04:57]} Qd2 {[%emt 0:02:11]} 35. Qe3 {[%emt 0:00:10]} Qxe3 {[%emt 0:10:26]} 36. fxe3 {[%emt 0:00:01]} Ra3 {[%emt 0:00:20]} 37. Kf2 {[%emt 0:00:46]} f5 {[%emt 0:02:43]} 38. Ne5 {[%emt 0:00:38]} fxe4 {[%emt 0:01:50]} 39. Nxc4 {[%emt 0:00:05]} bxc4 {[%emt 0:00:19]} 40. Rxc4 {[%emt 0:00:00]} Ra2+ {[%emt 0:00:00]} 41. Kg3 {[%emt 0:02:53]} Re2 {[%emt 0:01:16]} 42. Kf4 {[%emt 0:03:36]} Rxg2 {[%emt 0:00:05]} 43. Rxc6 {[%emt 0:01:16]} Rxh2 {[%emt 0:00:35]} 44. d5 {[%emt 0:06:42]} Rh5 {[%emt 0:05:48]} 45. Kxe4 {[%emt 0:00:19]} Kf7 {[%emt 0:00:06]} 46. Rd6 {[%emt 0:09:42]} Rh1 {[%emt 0:03:55]} 47. Ke5 {[%emt 0:00:25]} Rh5+ {[%emt 0:02:40]} 48. Ke4 {[%emt 0:00:07]} Rh1 {[%emt 0:00:08]} 49. Ke5 {[%emt 0:00:04]} Rh5+ {[%emt 0:00:08]} 50. Kf4 {[%emt 0:00:14]} Rh4+ {[%emt 0:00:29]} 51. Kf5 {[%emt 0:02:16]} Rh5+ {[%emt 0:02:34]} 52. Kg4 {[%emt 0:00:07]} Rh1 {[%emt 0:00:02]} 53. e4 {[%emt 0:00:56]} Rg1+ {[%emt 0:04:58]} 54. Kf5 {[%emt 0:00:29]} Rf1+ {[%emt 0:00:05]} 55. Ke5 {[%emt 0:00:12]} h5 {[%emt 0:00:02]} 56. Rd7+ {[%emt 0:00:20]} Kg6 {[%emt 0:02:29]} 57. Rd8 {[%emt 0:03:35]} Kh7 {[%emt 0:00:57]} 58. d6 {[%emt 0:02:24]} h4 {[%emt 0:05:49]} 59. Ra8 {[%emt 0:00:04]} Rd1 {[%emt 0:02:40]} 60. Ke6 {[%emt 0:03:44]} g5 {[%emt 0:01:02]} 61. Ra5 {[%emt 0:01:01]} Rd4 {[%emt 0:04:53]} 62. d7 {[%emt 0:01:16]} Rxe4+ {[%emt 0:00:05]} 63. Re5 1-0